[Event "*** SCC Grand Prix: Titled Tuesday Blitz"]
[Site "Chess.com"]
[Date "2020.09.08"]
[Round "10"]
[White "ChronicUnhappiness"]
[Black "Artyom_ChessMate"]
[Result "1-0"]
[WhiteElo "2465"]
[BlackElo "2559"]
[TimeControl "180+1"]
[EndTime "11:57:38 PDT"]
[Termination "ChronicUnhappiness won by resignation"]

1. c4 {[%clk 0:03:00.9]} 1... e6 {[%clk 0:03:00.1]} 2. d4 {[%clk 0:03:00.4]}
2... d5 {[%clk 0:03:01]} 3. Nf3 {[%clk 0:03:00.3]} 3... Nf6 {[%clk 0:03:01.5]}
4. Bg5 {[%clk 0:03:00.2]} 4... Be7 {[%clk 0:03:01.1]} 5. cxd5 {[%clk 0:02:59]}
5... exd5 {[%clk 0:03:00]} 6. Nc3 {[%clk 0:02:59.2]} 6... c6 {[%clk 0:03:00.1]}
7. Qc2 {[%clk 0:02:58.9]} 7... g6 {[%clk 0:03:00.4]} 8. e3 {[%clk 0:02:55.6]}
8... Bf5 {[%clk 0:03:00.3]} 9. Bd3 {[%clk 0:02:55.8]} 9... Bxd3 {[%clk
0:03:00.9]} 10. Qxd3 {[%clk 0:02:56.2]} 10... Nbd7 {[%clk 0:03:01.6]} 11. Bh6
{[%clk 0:02:35.4]} 11... Ng4 {[%clk 0:03:00.4]} 12. Bf4 {[%clk 0:02:34.5]} 12...
O-O {[%clk 0:02:57.3]} 13. h3 {[%clk 0:02:33]} 13... Ngf6 {[%clk 0:02:57.1]} 14.
O-O {[%clk 0:02:32.5]} 14... Re8 {[%clk 0:02:55.8]} 15. Rab1 {[%clk 0:02:30.2]}
15... a5 {[%clk 0:02:55.9]} 16. Rfc1 {[%clk 0:02:20.1]} 16... Bf8 {[%clk
0:02:55.5]} 17. Na4 {[%clk 0:01:55.7]} 17... Ne4 {[%clk 0:02:52.6]} 18. Ne5
{[%clk 0:01:46.5]} 18... Nxe5 {[%clk 0:02:37.2]} 19. Bxe5 {[%clk 0:01:47.4]}
19... Bd6 {[%clk 0:02:37.6]} 20. Bxd6 {[%clk 0:01:43.8]} 20... Nxd6 {[%clk
0:02:34.6]} 21. Nc5 {[%clk 0:01:32.3]} 21... h5 {[%clk 0:02:34.6]} 22. Qb3
{[%clk 0:01:21.9]} 22... Qe7 {[%clk 0:02:19.4]} 23. Nd3 {[%clk 0:01:18.3]} 23...
Kg7 {[%clk 0:02:15.6]} 24. Qd1 {[%clk 0:01:12.6]} 24... Ne4 {[%clk 0:01:47.1]}
25. a4 {[%clk 0:01:03.7]} 25... f6 {[%clk 0:01:28.6]} 26. b4 {[%clk 0:01:03.2]}
26... axb4 {[%clk 0:01:21]} 27. Rxb4 {[%clk 0:01:04.1]} 27... Ra7 {[%clk
0:00:41.7]} 28. Qc2 {[%clk 0:01:03.6]} 28... Qd6 {[%clk 0:00:31.8]} 29. Rcb1
{[%clk 0:01:00.4]} 29... Re7 {[%clk 0:00:30.7]} 30. Nf4 {[%clk 0:00:56.8]} 30...
g5 {[%clk 0:00:14.8]} 31. Nxh5+ {[%clk 0:00:46.6]} 31... Kh6 {[%clk 0:00:14.6]}
32. g4 {[%clk 0:00:32.6]} 32... f5 {[%clk 0:00:14.4]} 33. f3 {[%clk 0:00:32.2]}
33... fxg4 {[%clk 0:00:13.2]} 34. hxg4 {[%clk 0:00:28.4]} 34... Nf6 {[%clk
0:00:05.2]} 35. Nxf6 {[%clk 0:00:13.4]} 35... Qxf6 {[%clk 0:00:06.1]} 36. Qh2+
{[%clk 0:00:10]} 36... Kg7 {[%clk 0:00:06.5]} 37. Kf2 {[%clk 0:00:10.2]} 37...
Qe6 {[%clk 0:00:05.5]} 38. R1b3 {[%clk 0:00:07]} 38... Qf6 {[%clk 0:00:03]} 39.
a5 {[%clk 0:00:05.1]} 39... Rf7 {[%clk 0:00:03.1]} 40. Qg3 {[%clk 0:00:05.1]}
40... Re7 {[%clk 0:00:02.3]} 41. Qh2 {[%clk 0:00:05]} 41... Rf7 {[%clk
0:00:02.1]} 42. Qe5 {[%clk 0:00:05.1]} 42... Qxe5 {[%clk 0:00:02]} 43. dxe5
{[%clk 0:00:05.5]} 43... Kg6 {[%clk 0:00:02.9]} 44. Kg3 {[%clk 0:00:05.5]} 44...
Rxa5 {[%clk 0:00:02.1]} 45. Rxb7 {[%clk 0:00:05.5]} 45... Rxb7 {[%clk
0:00:02.8]} 46. Rxb7 {[%clk 0:00:06.3]} 46... Ra3 {[%clk 0:00:03.7]} 47. Kf2
{[%clk 0:00:05.7]} 47... Ra2+ {[%clk 0:00:04.1]} 48. Kg3 {[%clk 0:00:06]} 48...
Ra3 {[%clk 0:00:05]} 49. Rc7 {[%clk 0:00:06.5]} 49... Rxe3 {[%clk 0:00:04.8]}
50. Rxc6+ {[%clk 0:00:06.9]} 50... Kf7 {[%clk 0:00:05.2]} 51. Rc7+ {[%clk
0:00:05.2]} 51... Ke6 {[%clk 0:00:05.5]} 52. Rc6+ {[%clk 0:00:06.1]} 52... Kxe5
{[%clk 0:00:05.7]} 53. Rg6 {[%clk 0:00:06.7]} 53... d4 {[%clk 0:00:05.9]} 54.
Rxg5+ {[%clk 0:00:07.2]} 54... Kd6 {[%clk 0:00:06.5]} 55. Rg8 {[%clk 0:00:07.5]}
55... Re2 {[%clk 0:00:06.5]} 56. Rd8+ {[%clk 0:00:07.3]} 56... Ke5 {[%clk
0:00:06.9]} 57. Re8+ {[%clk 0:00:06.9]} 57... Kd5 {[%clk 0:00:07.3]} 58. Rxe2
{[%clk 0:00:07.6]} 58... d3 {[%clk 0:00:08.2]} 59. Rd2 {[%clk 0:00:08]} 59...
Kd4 {[%clk 0:00:08.6]} 60. Rxd3+ {[%clk 0:00:08.4]} 60... Kxd3 {[%clk
0:00:09.1]} 61. Kf4 {[%clk 0:00:09.3]} 1-0

[Event "*** SCC Grand Prix: Titled Tuesday Blitz"]
[Site "Chess.com"]
[Date "2020.09.08"]
[Round "10"]
[White "gumimis"]
[Black "juli2512"]
[Result "1-0"]
[WhiteElo "2191"]
[BlackElo "2043"]
[TimeControl "180+1"]
[EndTime "11:57:43 PDT"]
[Termination "gumimis won on time"]

1. e4 {[%clk 0:03:00.8]} 1... c5 {[%clk 0:02:59.2]} 2. Nf3 {[%clk 0:03:01.1]}
2... d6 {[%clk 0:02:59.2]} 3. d4 {[%clk 0:03:01.7]} 3... cxd4 {[%clk 0:02:59.5]}
4. Nxd4 {[%clk 0:03:02.6]} 4... Nf6 {[%clk 0:02:59.8]} 5. Nc3 {[%clk 0:03:03.4]}
5... Nc6 {[%clk 0:03:00.3]} 6. Bg5 {[%clk 0:03:03.5]} 6... e6 {[%clk 0:02:59.6]}
7. f4 {[%clk 0:03:03.8]} 7... Nxd4 {[%clk 0:02:55.4]} 8. Qxd4 {[%clk 0:03:03.6]}
8... Be7 {[%clk 0:02:56]} 9. O-O-O {[%clk 0:03:03.7]} 9... O-O {[%clk
0:02:52.2]} 10. Bxf6 {[%clk 0:02:55.1]} 10... gxf6 {[%clk 0:02:18.4]} 11. g4
{[%clk 0:02:48.7]} 11... Qa5 {[%clk 0:02:16.6]} 12. h4 {[%clk 0:02:38.5]} 12...
Qc5 {[%clk 0:02:14.9]} 13. Qd2 {[%clk 0:02:33.2]} 13... Bd7 {[%clk 0:02:08.1]}
14. g5 {[%clk 0:02:32.2]} 14... Bc6 {[%clk 0:02:04.8]} 15. Bd3 {[%clk
0:02:25.6]} 15... b5 {[%clk 0:01:42.8]} 16. Rdg1 {[%clk 0:02:23.5]} 16... Kh8
{[%clk 0:01:42.4]} 17. Rh2 {[%clk 0:01:47.3]} 17... Qxg1+ {[%clk 0:01:38.4]} 18.
Nd1 {[%clk 0:01:38.8]} 18... d5 {[%clk 0:00:59]} 19. exd5 {[%clk 0:01:35.7]}
19... Bxd5 {[%clk 0:00:57.6]} 20. gxf6 {[%clk 0:01:32.5]} 20... Bxf6 {[%clk
0:00:55.7]} 21. Qe2 {[%clk 0:01:32.5]} 21... Rg8 {[%clk 0:00:49.7]} 22. Qh5
{[%clk 0:01:25.5]} 22... Rg7 {[%clk 0:00:47]} 23. Rd2 {[%clk 0:01:08]} 23... Qg4
{[%clk 0:00:34.3]} 24. Qh6 {[%clk 0:01:06.9]} 24... Qxh4 {[%clk 0:00:23.5]} 25.
Qxh4 {[%clk 0:01:04.1]} 25... Bxh4 {[%clk 0:00:23.3]} 26. Bxb5 {[%clk 0:01:05]}
26... Bg3 {[%clk 0:00:20.6]} 27. Kb1 {[%clk 0:01:00.9]} 27... Bxf4 {[%clk
0:00:19.9]} 28. Rd3 {[%clk 0:00:59.9]} 28... Rg1 {[%clk 0:00:18.3]} 29. b3
{[%clk 0:00:54.9]} 29... Rc8 {[%clk 0:00:16.4]} 30. Kb2 {[%clk 0:00:54.4]} 30...
Be5+ {[%clk 0:00:15.6]} 31. c3 {[%clk 0:00:54.5]} 31... Bf6 {[%clk 0:00:14.9]}
32. Ka3 {[%clk 0:00:48.2]} 32... a5 {[%clk 0:00:13.5]} 33. c4 {[%clk 0:00:39]}
33... Be4 {[%clk 0:00:12.2]} 34. Rd7 {[%clk 0:00:35.7]} 34... Bg6 {[%clk
0:00:11.8]} 35. Ne3 {[%clk 0:00:32.7]} 35... h5 {[%clk 0:00:10.8]} 36. Ka4
{[%clk 0:00:28.5]} 36... Ra1 {[%clk 0:00:09.3]} 37. Kxa5 {[%clk 0:00:27.8]}
37... Rxa2+ {[%clk 0:00:08.9]} 38. Kb6 {[%clk 0:00:28.1]} 38... h4 {[%clk
0:00:08.9]} 39. Ng4 {[%clk 0:00:26.1]} 39... Bg7 {[%clk 0:00:08.7]} 40. Kb7
{[%clk 0:00:22.4]} 40... Rca8 {[%clk 0:00:06.9]} 41. c5 {[%clk 0:00:21.7]} 41...
R2a7+ {[%clk 0:00:06.5]} 42. Kb6 {[%clk 0:00:20.7]} 42... Rxd7 {[%clk
0:00:06.4]} 43. Bxd7 {[%clk 0:00:21.2]} 43... h3 {[%clk 0:00:06.8]} 44. c6
{[%clk 0:00:14.1]} 44... Bf5 {[%clk 0:00:05.8]} 45. Nh2 {[%clk 0:00:10.5]} 45...
Be5 {[%clk 0:00:05]} 46. Nf3 {[%clk 0:00:11]} 46... Bf4 {[%clk 0:00:04.5]} 47.
b4 {[%clk 0:00:09]} 47... Be4 {[%clk 0:00:04.1]} 48. Kb7 {[%clk 0:00:06.5]}
48... Rb8+ {[%clk 0:00:03.7]} 49. Ka7 {[%clk 0:00:06.9]} 49... Rxb4 {[%clk
0:00:03.5]} 50. Ng5 {[%clk 0:00:04.5]} 50... Bxg5 {[%clk 0:00:01.5]} 51. c7
{[%clk 0:00:04.4]} 51... Rc4 {[%clk 0:00:01.2]} 52. c8=Q+ {[%clk 0:00:04.6]} 1-0

[Event "*** SCC Grand Prix: Titled Tuesday Blitz"]
[Site "Chess.com"]
[Date "2020.09.08"]
[Round "10"]
[White "Shuvalov"]
[Black "paulrusan"]
[Result "1-0"]
[WhiteElo "2450"]
[BlackElo "2280"]
[TimeControl "180+1"]
[EndTime "11:57:48 PDT"]
[Termination "Shuvalov won on time"]

1. Nf3 {[%clk 0:02:52.1]} 1... f5 {[%clk 0:02:59.4]} 2. g3 {[%clk 0:02:51.3]}
2... Nf6 {[%clk 0:02:59.4]} 3. Bg2 {[%clk 0:02:51]} 3... g6 {[%clk 0:02:59.6]}
4. O-O {[%clk 0:02:51]} 4... Bg7 {[%clk 0:02:59.7]} 5. d4 {[%clk 0:02:50.9]}
5... O-O {[%clk 0:02:58.7]} 6. c3 {[%clk 0:02:50.3]} 6... e6 {[%clk 0:02:58.1]}
7. Nbd2 {[%clk 0:02:48.2]} 7... Nc6 {[%clk 0:02:58]} 8. Re1 {[%clk 0:02:46.1]}
8... d6 {[%clk 0:02:57.7]} 9. e4 {[%clk 0:02:45.6]} 9... fxe4 {[%clk 0:02:54.8]}
10. Nxe4 {[%clk 0:02:46.5]} 10... Nxe4 {[%clk 0:02:54.9]} 11. Rxe4 {[%clk
0:02:47.4]} 11... h6 {[%clk 0:02:47.1]} 12. h4 {[%clk 0:02:38.4]} 12... Bd7
{[%clk 0:02:40]} 13. Rf4 {[%clk 0:02:29.7]} 13... Qe7 {[%clk 0:02:38.4]} 14. Qd3
{[%clk 0:02:26.3]} 14... Rf5 {[%clk 0:02:30.9]} 15. Bh3 {[%clk 0:02:20.9]} 15...
Raf8 {[%clk 0:02:17.1]} 16. Bxf5 {[%clk 0:02:15.4]} 16... gxf5 {[%clk
0:02:17.3]} 17. Nh2 {[%clk 0:02:06.8]} 17... e5 {[%clk 0:02:17.3]} 18. dxe5
{[%clk 0:01:59.5]} 18... dxe5 {[%clk 0:02:17.5]} 19. Ra4 {[%clk 0:01:45.8]}
19... f4 {[%clk 0:01:57.9]} 20. Bd2 {[%clk 0:01:28.2]} 20... fxg3 {[%clk
0:01:41.9]} 21. fxg3 {[%clk 0:01:22]} 21... Bf5 {[%clk 0:01:32.1]} 22. Qb5
{[%clk 0:01:09.1]} 22... e4 {[%clk 0:01:26.8]} 23. Rf1 {[%clk 0:00:53.7]} 23...
Ne5 {[%clk 0:01:25.7]} 24. Bf4 {[%clk 0:00:41.1]} 24... c6 {[%clk 0:01:19.8]}
25. Qb4 {[%clk 0:00:36.9]} 25... c5 {[%clk 0:01:14.6]} 26. Qb3+ {[%clk 0:00:32]}
26... Be6 {[%clk 0:01:14.4]} 27. Qd1 {[%clk 0:00:29.1]} 27... Nd3 {[%clk
0:01:11.5]} 28. Rxe4 {[%clk 0:00:25.1]} 28... Nxf4 {[%clk 0:01:04.9]} 29. Rexf4
{[%clk 0:00:24.6]} 29... Rxf4 {[%clk 0:01:02.4]} 30. Rxf4 {[%clk 0:00:25.5]}
30... Be5 {[%clk 0:00:55.8]} 31. Rf3 {[%clk 0:00:23.1]} 31... Qc7 {[%clk
0:00:51.2]} 32. Qe2 {[%clk 0:00:21.3]} 32... Bxa2 {[%clk 0:00:49]} 33. Re3
{[%clk 0:00:18.6]} 33... Bf6 {[%clk 0:00:48.8]} 34. Ng4 {[%clk 0:00:16.1]} 34...
Bg7 {[%clk 0:00:41.9]} 35. Ne5 {[%clk 0:00:15.8]} 35... Bd5 {[%clk 0:00:31.5]}
36. Kh2 {[%clk 0:00:15.7]} 36... b6 {[%clk 0:00:30.2]} 37. Qg4 {[%clk 0:00:15]}
37... Qd6 {[%clk 0:00:20]} 38. Ng6 {[%clk 0:00:08.6]} 38... Kh7 {[%clk
0:00:18.1]} 39. Nf4 {[%clk 0:00:07.8]} 39... Bf7 {[%clk 0:00:16.8]} 40. Qf5+
{[%clk 0:00:07.8]} 40... Kg8 {[%clk 0:00:15.7]} 41. Ne6 {[%clk 0:00:06.6]} 41...
Bxe6 {[%clk 0:00:14.8]} 42. Qxe6+ {[%clk 0:00:06]} 42... Qxe6 {[%clk 0:00:15.2]}
43. Rxe6 {[%clk 0:00:06.9]} 43... Kf7 {[%clk 0:00:15.4]} 44. Rc6 {[%clk
0:00:07]} 44... Be5 {[%clk 0:00:14.9]} 45. Kg2 {[%clk 0:00:06.4]} 45... h5
{[%clk 0:00:14.7]} 46. Kf3 {[%clk 0:00:06.3]} 46... Kg7 {[%clk 0:00:13.8]} 47.
g4 {[%clk 0:00:06]} 47... hxg4+ {[%clk 0:00:13.6]} 48. Kxg4 {[%clk 0:00:06.9]}
48... Bh2 {[%clk 0:00:13.3]} 49. h5 {[%clk 0:00:07.1]} 49... Kh7 {[%clk
0:00:12.2]} 50. Kf5 {[%clk 0:00:07.2]} 50... Bg3 {[%clk 0:00:11]} 51. Rg6 {[%clk
0:00:08.1]} 51... Be1 {[%clk 0:00:09.1]} 52. c4 {[%clk 0:00:07.5]} 52... Bd2
{[%clk 0:00:08.1]} 53. b3 {[%clk 0:00:08]} 53... Be3 {[%clk 0:00:04.4]} 54. Ke4
{[%clk 0:00:08.2]} 54... Bd4 {[%clk 0:00:04.3]} 55. Kd5 {[%clk 0:00:08.7]} 55...
a5 {[%clk 0:00:03.8]} 56. Rxb6 {[%clk 0:00:07.7]} 56... Kg7 {[%clk 0:00:03.3]}
57. Rg6+ {[%clk 0:00:07.6]} 57... Kh7 {[%clk 0:00:03]} 58. Kc6 {[%clk
0:00:07.9]} 58... Be3 {[%clk 0:00:01.7]} 59. Kb5 {[%clk 0:00:08.1]} 59... Bd2
{[%clk 0:00:02.1]} 60. Kxc5 {[%clk 0:00:08.3]} 60... Bb4+ {[%clk 0:00:02.3]} 61.
Kb5 {[%clk 0:00:08.6]} 61... Bc3 {[%clk 0:00:02.3]} 62. c5 {[%clk 0:00:08.7]}
1-0

[Event "*** SCC Grand Prix: Titled Tuesday Blitz"]
[Site "Chess.com"]
[Date "2020.09.08"]
[Round "10"]
[White "fabianvivasz"]
[Black "Sergey85Rodchenkov"]
[Result "1-0"]
[WhiteElo "2324"]
[BlackElo "2472"]
[TimeControl "180+1"]
[EndTime "11:57:51 PDT"]
[Termination "fabianvivasz won by resignation"]

1. c4 {[%clk 0:03:00.9]} 1... Nf6 {[%clk 0:02:59.3]} 2. g3 {[%clk 0:02:58.5]}
2... d5 {[%clk 0:02:57.9]} 3. cxd5 {[%clk 0:02:58.1]} 3... Nxd5 {[%clk
0:02:58.5]} 4. Bg2 {[%clk 0:02:57.5]} 4... Nb6 {[%clk 0:02:59]} 5. Nf3 {[%clk
0:02:53.9]} 5... Nc6 {[%clk 0:02:58.9]} 6. d4 {[%clk 0:02:52.4]} 6... Bg4 {[%clk
0:02:53.4]} 7. O-O {[%clk 0:02:37.6]} 7... e6 {[%clk 0:02:52.4]} 8. Nc3 {[%clk
0:02:09.8]} 8... Bb4 {[%clk 0:02:50.1]} 9. Bf4 {[%clk 0:01:57.1]} 9... O-O
{[%clk 0:02:48.7]} 10. Rc1 {[%clk 0:01:53.7]} 10... h6 {[%clk 0:02:19.1]} 11.
Ne5 {[%clk 0:01:49.6]} 11... Nxe5 {[%clk 0:02:16.9]} 12. Bxe5 {[%clk 0:01:49]}
12... c6 {[%clk 0:02:14.5]} 13. h3 {[%clk 0:01:27.3]} 13... Bh5 {[%clk
0:02:10.7]} 14. Re1 {[%clk 0:01:10.5]} 14... a5 {[%clk 0:02:05.3]} 15. Qb3
{[%clk 0:01:03.7]} 15... Nd5 {[%clk 0:01:56.1]} 16. a3 {[%clk 0:00:58.8]} 16...
a4 {[%clk 0:01:47]} 17. Qa2 {[%clk 0:00:51.2]} 17... Bd6 {[%clk 0:01:36.2]} 18.
Bxd6 {[%clk 0:00:40.6]} 18... Qxd6 {[%clk 0:01:35.7]} 19. Ne4 {[%clk 0:00:38.7]}
19... Qe7 {[%clk 0:01:34.7]} 20. Nc5 {[%clk 0:00:34.7]} 20... Rfd8 {[%clk
0:01:27.4]} 21. Qc4 {[%clk 0:00:27.3]} 21... Bg6 {[%clk 0:00:53.4]} 22. e4
{[%clk 0:00:19.5]} 22... Nf6 {[%clk 0:00:50.7]} 23. Qb4 {[%clk 0:00:09]} 23...
Ra7 {[%clk 0:00:46.5]} 24. Qb6 {[%clk 0:00:07.9]} 24... Rda8 {[%clk 0:00:43.2]}
25. f4 {[%clk 0:00:04.9]} 25... Nd7 {[%clk 0:00:40.4]} 26. Nxd7 {[%clk 0:00:04]}
26... Qxd7 {[%clk 0:00:40.6]} 27. Red1 {[%clk 0:00:04.7]} 27... Ra6 {[%clk
0:00:36.6]} 28. Qb4 {[%clk 0:00:04.6]} 28... Rd8 {[%clk 0:00:18]} 29. d5 {[%clk
0:00:05]} 29... exd5 {[%clk 0:00:17.5]} 30. exd5 {[%clk 0:00:05.9]} 30... cxd5
{[%clk 0:00:14.7]} 31. Rxd5 {[%clk 0:00:06.8]} 31... Rd6 {[%clk 0:00:13.7]} 32.
Rcd1 {[%clk 0:00:05.4]} 32... Rxd5 {[%clk 0:00:12.9]} 33. Rxd5 {[%clk
0:00:06.3]} 33... Qc8 {[%clk 0:00:12.5]} 34. Qxb7 {[%clk 0:00:04.8]} 34... Qb8
{[%clk 0:00:08.8]} 35. Qxb8 {[%clk 0:00:04.3]} 35... Rxb8 {[%clk 0:00:09]} 36.
Rd2 {[%clk 0:00:04.8]} 36... Bf5 {[%clk 0:00:07.5]} 37. Kh2 {[%clk 0:00:04.1]}
37... Be6 {[%clk 0:00:07.6]} 38. Bc6 {[%clk 0:00:03.9]} 38... g5 {[%clk
0:00:07.5]} 39. Bxa4 {[%clk 0:00:03.4]} 39... gxf4 {[%clk 0:00:07.4]} 40. gxf4
{[%clk 0:00:04.3]} 40... Kg7 {[%clk 0:00:07.8]} 41. Bd1 {[%clk 0:00:04]} 41...
Kf6 {[%clk 0:00:08]} 42. Kg3 {[%clk 0:00:04.5]} 42... Rc8 {[%clk 0:00:07.5]} 43.
Rd3 {[%clk 0:00:03.7]} 43... Rc1 {[%clk 0:00:07.2]} 44. b4 {[%clk 0:00:03.4]}
44... Rb1 {[%clk 0:00:07]} 45. Bf3 {[%clk 0:00:02.7]} 45... Ra1 {[%clk
0:00:06.6]} 46. Be4 {[%clk 0:00:02.9]} 46... Bc4 {[%clk 0:00:06.3]} 47. Rc3
{[%clk 0:00:03.2]} 47... Be2 {[%clk 0:00:05.8]} 48. Kf2 {[%clk 0:00:03.5]} 48...
Bb5 {[%clk 0:00:04.7]} 49. Rc5 {[%clk 0:00:03.6]} 49... Ba4 {[%clk 0:00:04.1]}
50. Rc3 {[%clk 0:00:03.8]} 50... Ra2+ {[%clk 0:00:04.1]} 51. Ke3 {[%clk
0:00:03.8]} 51... Rb2 {[%clk 0:00:04.5]} 52. Bd3 {[%clk 0:00:03.7]} 52... Bd1
{[%clk 0:00:04.5]} 53. b5 {[%clk 0:00:03.1]} 53... Ba4 {[%clk 0:00:03.7]} 54.
Rc5 {[%clk 0:00:02.4]} 54... Bd1 {[%clk 0:00:03.1]} 55. Rc6+ {[%clk 0:00:02.1]}
55... Ke7 {[%clk 0:00:03.5]} 56. b6 {[%clk 0:00:02.7]} 56... Kd7 {[%clk
0:00:03.4]} 57. Rxh6 {[%clk 0:00:03.1]} 57... f6 {[%clk 0:00:02.5]} 58. Kd4
{[%clk 0:00:03.4]} 58... Rxb6 {[%clk 0:00:01.6]} 59. Bf5+ {[%clk 0:00:03.9]}
59... Kd6 {[%clk 0:00:02]} 60. Rxf6+ {[%clk 0:00:03.8]} 60... Kc7 {[%clk
0:00:02.9]} 61. Rxb6 {[%clk 0:00:04.4]} 61... Kxb6 {[%clk 0:00:03.5]} 62. Ke5
{[%clk 0:00:05.1]} 62... Be2 {[%clk 0:00:03.9]} 63. h4 {[%clk 0:00:05.3]} 1-0

[Event "*** SCC Grand Prix: Titled Tuesday Blitz"]
[Site "Chess.com"]
[Date "2020.09.08"]
[Round "10"]
[White "Bigfish1995"]
[Black "GigaQuparadze"]
[Result "1-0"]
[WhiteElo "3028"]
[BlackElo "2913"]
[TimeControl "180+1"]
[EndTime "11:57:52 PDT"]
[Termination "Bigfish1995 won on time"]

1. e4 {[%clk 0:03:00.9]} 1... c5 {[%clk 0:02:59.7]} 2. Nf3 {[%clk 0:03:00.9]}
2... e6 {[%clk 0:02:59.8]} 3. d4 {[%clk 0:03:00.3]} 3... cxd4 {[%clk 0:03:00.7]}
4. Nxd4 {[%clk 0:03:01]} 4... a6 {[%clk 0:03:01]} 5. c4 {[%clk 0:03:00.3]} 5...
Nf6 {[%clk 0:03:00.7]} 6. Nc3 {[%clk 0:02:58.3]} 6... Bb4 {[%clk 0:03:00.7]} 7.
Qd3 {[%clk 0:02:54.7]} 7... O-O {[%clk 0:03:00.6]} 8. Bd2 {[%clk 0:02:46.3]}
8... d5 {[%clk 0:02:56]} 9. exd5 {[%clk 0:02:28.6]} 9... exd5 {[%clk 0:02:55.8]}
10. O-O-O {[%clk 0:02:29.2]} 10... Nc6 {[%clk 0:02:47.8]} 11. Nxd5 {[%clk
0:02:22.1]} 11... Nxd5 {[%clk 0:02:43.7]} 12. Nxc6 {[%clk 0:02:19.9]} 12...
Bxd2+ {[%clk 0:02:38.8]} 13. Rxd2 {[%clk 0:02:19.9]} 13... bxc6 {[%clk
0:02:38.9]} 14. cxd5 {[%clk 0:02:20]} 14... cxd5 {[%clk 0:02:24.1]} 15. Qxd5
{[%clk 0:02:12.8]} 15... Qc7+ {[%clk 0:02:23.3]} 16. Qc4 {[%clk 0:02:05.9]}
16... Qa5 {[%clk 0:02:16.9]} 17. Qd5 {[%clk 0:01:50.2]} 17... Qc7+ {[%clk
0:02:10.8]} 18. Rc2 {[%clk 0:01:49]} 18... Qb8 {[%clk 0:02:10.6]} 19. Bd3 {[%clk
0:01:47]} 19... Be6 {[%clk 0:01:56.2]} 20. Qe4 {[%clk 0:01:46.9]} 20... g6
{[%clk 0:01:53.8]} 21. Kb1 {[%clk 0:01:45.6]} 21... Qb6 {[%clk 0:01:45.2]} 22.
Qe3 {[%clk 0:01:32]} 22... Qa5 {[%clk 0:01:42]} 23. b3 {[%clk 0:01:31.2]} 23...
Rad8 {[%clk 0:01:39]} 24. Rd1 {[%clk 0:01:27.9]} 24... Qh5 {[%clk 0:01:37]} 25.
f3 {[%clk 0:01:25.3]} 25... Qxh2 {[%clk 0:01:30.8]} 26. Kb2 {[%clk 0:01:19]}
26... a5 {[%clk 0:01:29.2]} 27. Rdd2 {[%clk 0:01:15.2]} 27... Qg3 {[%clk
0:01:26.8]} 28. Qc5 {[%clk 0:01:12.1]} 28... a4 {[%clk 0:01:24.1]} 29. bxa4
{[%clk 0:01:11.9]} 29... Rb8+ {[%clk 0:01:13.6]} 30. Bb5 {[%clk 0:01:10.8]}
30... Bf5 {[%clk 0:01:10.1]} 31. Rc1 {[%clk 0:01:04]} 31... Rfc8 {[%clk
0:01:06.9]} 32. Qd6 {[%clk 0:01:02.2]} 32... Qh4 {[%clk 0:01:01.3]} 33. g4
{[%clk 0:00:59.1]} 33... Be6 {[%clk 0:00:53]} 34. Rxc8+ {[%clk 0:00:56.7]} 34...
Rxc8 {[%clk 0:00:53.9]} 35. Qd4 {[%clk 0:00:56.8]} 35... Qe1 {[%clk 0:00:45.6]}
36. Rc2 {[%clk 0:00:54.2]} 36... Rb8 {[%clk 0:00:42.4]} 37. a3 {[%clk
0:00:46.5]} 37... Qg3 {[%clk 0:00:40.1]} 38. Rc3 {[%clk 0:00:38.2]} 38... Qh2+
{[%clk 0:00:39.2]} 39. Kc1 {[%clk 0:00:37.7]} 39... Qa2 {[%clk 0:00:37.3]} 40.
Qd6 {[%clk 0:00:31.1]} 40... Qa1+ {[%clk 0:00:33.7]} 41. Kd2 {[%clk 0:00:29.1]}
41... Rf8 {[%clk 0:00:32.9]} 42. Rd3 {[%clk 0:00:24.9]} 42... Qb2+ {[%clk
0:00:32.2]} 43. Ke3 {[%clk 0:00:24.3]} 43... Rc8 {[%clk 0:00:31.9]} 44. Qd4
{[%clk 0:00:21.8]} 44... Qc1+ {[%clk 0:00:31.5]} 45. Rd2 {[%clk 0:00:20.1]}
45... Qxa3+ {[%clk 0:00:23.1]} 46. Kf4 {[%clk 0:00:18.8]} 46... h6 {[%clk
0:00:23.1]} 47. Kg3 {[%clk 0:00:18.3]} 47... Rc3 {[%clk 0:00:22.4]} 48. Qf6
{[%clk 0:00:15.5]} 48... Rc8 {[%clk 0:00:16.9]} 49. Qf4 {[%clk 0:00:15.4]} 49...
Qc1 {[%clk 0:00:13.4]} 50. Qxh6 {[%clk 0:00:14.6]} 50... Qg1+ {[%clk 0:00:12.7]}
51. Rg2 {[%clk 0:00:14.2]} 51... Qe1+ {[%clk 0:00:12.8]} 52. Kh2 {[%clk
0:00:13.9]} 52... Rc1 {[%clk 0:00:11.9]} 53. Qg5 {[%clk 0:00:07.1]} 53... Rc3
{[%clk 0:00:09.2]} 54. Qf6 {[%clk 0:00:04.6]} 54... Bd5 {[%clk 0:00:08.6]} 55.
Re2 {[%clk 0:00:01.5]} 1-0